fUST/lending_fUST_20240723
["ID","MTS","AMOUNT","RATE_DAILY","PERIOD"]
[332988089,1721729460353,-151.0,0.00013838,2]
[332988090,1721729460362,-1746.257934,0.00013838,2]
[332988091,1721729460371,-1746.257934,0.00013838,2]
[332988092,1721729460380,-151.0,0.00013838,2]
[332988093,1721729460390,-151.0,0.00013838,2]
[332988094,1721729460399,-151.0,0.00013838,2]
[332988095,1721729460409,-4044.004059,0.00013838,2]
[332988096,1721729460419,-4044.004059,0.00013838,2]
[332988097,1721729460429,-500.0,0.0001396,2]
[332988098,1721729460438,-151.0,0.00013961,2]
[332988099,1721729460448,-151.0,0.00013961,2]
[332988100,1721729460458,-151.0,0.00013961,2]
[332988101,1721729460468,-151.0,0.00013961,2]
[332988102,1721729460478,-687.267617,0.00013961,2]
[332988103,1721729460488,-687.267617,0.00013961,2]
[332988104,1721729460497,-500.0,0.00013961,2]
[332988105,1721729460506,-500.0,0.00013961,2]
[332988106,1721729460516,-570.09351148,0.00013961,2]
[332988107,1721729460525,-332.029238,0.00013961,2]
[332988108,1721729460536,-332.029238,0.00013961,2]
[332988109,1721729460545,-151.0,0.00013962,2]
[332988110,1721729460556,-5305.4820148,0.00013969,2]
[332988111,1721729460565,-62346.42488319,0.0001397,2]
[332988112,1721729460575,-151.0,0.0001397,2]
[332988113,1721729460584,-2174.941394,0.0001397,2]
[332988114,1721729460595,-2174.941394,0.0001397,2]
[332988115,1721729460606,-5232.199134,0.0001397,2]
[332988116,1721729460615,-5232.199134,0.0001397,2]
[332988117,1721729460625,-794.167666,0.0001397,2]
[332988118,1721729460636,-794.167666,0.0001397,2]
[332988119,1721729460645,-166.321382,0.0001397,2]
[332988120,1721729460658,-166.321382,0.0001397,2]
[332988121,1721729460668,-2092.202731,0.0001397,2]
[332988122,1721729460677,-177.083996,0.0001397,2]
[332988123,1721729460686,-2092.202731,0.0001397,2]
[332988124,1721729460696,-151.0,0.0001397,2]
[332988125,1721729460705,-177.083996,0.0001397,2]
[332988126,1721729460715,-151.0,0.0001397,2]
[332988127,1721729460725,-4350.455174,0.0001397,2]
[332988128,1721729460734,-4350.455174,0.0001397,2]
[332988129,1721729460744,-247.364954,0.0001397,2]
[332988130,1721729460753,-247.364954,0.0001397,2]
[332988131,1721729460762,-282.294659,0.0001397,2]
[332988132,1721729460772,-282.294659,0.0001397,2]
[332988133,1721729460781,-151.0,0.0001397,2]
[332988134,1721729460792,-4579.396704,0.0001397,2]
[332988135,1721729460803,-4579.396704,0.0001397,2]
[332988136,1721729460814,-151.0,0.0001397,2]
[332988137,1721729460823,-151.0,0.0001397,2]
[332988138,1721729460834,-2303.425605,0.0001397,2]
[332988139,1721729460844,-5229.849263,0.0001397,2]
[332988140,1721729460854,-2303.425605,0.0001397,2]
[332988141,1721729460864,-5229.849263,0.0001397,2]
[332988142,1721729460873,-308.423306,0.0001397,2]
[332988143,1721729460883,-308.423306,0.0001397,2]
[332988144,1721729460893,-151.0,0.0001397,2]
[332988145,1721729460902,-151.0,0.0001397,2]
[332988146,1721729460912,-151.0,0.0001397,2]
[332988147,1721729460922,-151.0,0.0001397,2]
[332988148,1721729460931,-151.0,0.0001397,2]
[332988149,1721729460941,-151.0,0.0001397,2]
[332988150,1721729460950,-1060.742562,0.0001397,2]
[332988151,1721729460960,-1060.742562,0.0001397,2]
[332988152,1721729460969,-2858.62,0.00013971,2]
[332988153,1721729460979,-2858.62,0.00013971,2]
[332988154,1721729460989,-2858.62,0.00013971,2]
[332988155,1721729460998,-2858.62,0.00013971,2]
[332988156,1721729461007,-2858.62,0.00013971,2]
[332988157,1721729461017,-2858.62,0.00013971,2]
[332988158,1721729461026,-2858.84965426,0.00013971,2]
[332988159,1721729461036,-3517.94,0.00013971,2]
[332988160,1721729461045,-3517.94,0.00013971,2]
[332988161,1721729461055,-3517.94,0.00013971,2]
[332988162,1721729461066,-3517.94,0.00013971,2]
[332988163,1721729461077,-3517.94,0.00013971,2]
[332988164,1721729461087,-3517.94,0.00013971,2]
[332988165,1721729461096,-3517.98,0.00013971,2]
[332988166,1721729461107,-500.0,0.00013971,2]
[332988167,1721729461117,-500.0,0.00013971,2]
[332988168,1721729461236,-500.0,0.00013971,2]
[332988169,1721729461248,-500.0,0.00013971,2]
[332988170,1721729461258,-500.0,0.00013971,2]
[332988171,1721729461267,-524.75234271,0.00013971,2]
[332988172,1721729461277,-151.0,0.00013971,2]
[332988173,1721729461288,-151.0,0.00013971,2]
[332988174,1721729461297,-151.0,0.00013971,2]
[332988175,1721729461306,-687.267617,0.00013971,2]
[332988176,1721729461317,-687.267617,0.00013971,2]
[332988177,1721729461328,-332.029238,0.00013971,2]
[332988178,1721729461337,-332.029238,0.00013971,2]
[332988179,1721729461347,-241.568772,0.00013971,2]
[332988180,1721729461357,-1746.257934,0.00013971,2]
[332988181,1721729461368,-1746.257934,0.00013971,2]
[332988182,1721729461377,-151.0,0.00013971,2]
[332988183,1721729461387,-151.0,0.00013971,2]
[332988184,1721729461397,-159.554174,0.00013971,2]
[332988185,1721729461408,-4044.004059,0.00013971,2]
[332988186,1721729461417,-4044.004059,0.00013971,2]
[332988187,1721729461428,-495.14811872,0.00013972,2]
[332988188,1721729461438,-500.0,0.00013972,2]
[332988189,1721729461448,-500.0,0.00013972,2]
[332988190,1721729461458,-609.67,0.00013972,2]
[332988191,1721729461468,-500.0,0.00013972,2]
[332988192,1721729461479,-209.33,0.00013972,2]
[332988193,1721729461489,-500.0,0.00013972,2]
[332988194,1721729461499,-369.63,0.00013972,2]
[332988195,1721729461510,-500.0,0.00013972,2]
[332988196,1721729461520,-500.0,0.00013972,2]
[332988197,1721729461530,-500.0,0.00013972,2]
[332988198,1721729461538,-500.0,0.00013972,2]
[332988199,1721729461547,-160.14,0.00013972,2]
[332988200,1721729461558,-195.22,0.00013972,2]
[332988201,1721729461568,-207.47,0.00013972,2]
[332988202,1721729461578,-500.0,0.00013972,2]
[332988203,1721729461588,-417.87,0.00013972,2]
[332988204,1721729461598,-571.31407726,0.00013972,2]
[332988205,1721729461609,-375.74,0.00013972,2]
[332988206,1721729461618,-275.48,0.00013972,2]
[332988207,1721729461627,-500.0,0.00013972,2]
[332988208,1721729461638,-435.02,0.00013972,2]
[332988209,1721729461650,-287.98,0.00013972,2]
[332988210,1721729461660,-541.82,0.00013972,2]
[332988211,1721729461670,-500.0,0.00013972,2]
[332988212,1721729461680,-500.0,0.00013972,2]
[332988213,1721729461689,-500.0,0.00013972,2]
[332988214,1721729461699,-500.0,0.00013972,2]
[332988215,1721729461709,-500.0,0.00013972,2]
[332988216,1721729461719,-455.14,0.00013972,2]
[332988217,1721729461729,-500.0,0.00013972,2]
[332988218,1721729461739,-500.0,0.00013972,2]
[332988219,1721729461747,-496.77,0.00013972,2]
[332988220,1721729461758,-631.85,0.00013972,2]
[332988221,1721729461768,-500.0,0.00013972,2]
[332988222,1721729461777,-268.55,0.00013972,2]
[332988223,1721729461787,-500.0,0.00013972,2]
[332988224,1721729461799,-385.12,0.00013972,2]
[332988225,1721729461810,-500.0,0.00013972,2]
[332988226,1721729461819,-564.54,0.00013972,2]
[332988227,1721729461830,-521.61,0.00013972,2]
[332988228,1721729461839,-552.93,0.00013972,2]
[332988229,1721729461848,-500.0,0.00013972,2]
[332988230,1721729461860,-500.0,0.00013972,2]
[332988231,1721729461870,-500.0,0.00013972,2]
[332988232,1721729461879,-422.84,0.00013972,2]
[332988233,1721729461889,-591.55,0.00013972,2]
[332988234,1721729461899,-500.0,0.00013972,2]
[332988235,1721729461908,-299.14,0.00013972,2]
[332988236,1721729461918,-399.22,0.00013972,2]
[332988237,1721729461927,-549.64,0.00013972,2]
[332988238,1721729461938,-500.0,0.00013972,2]
[332988239,1721729461948,-433.34,0.00013972,2]
[332988240,1721729461958,-500.0,0.00013972,2]
[332988241,1721729461968,-636.8,0.00013972,2]
[332988242,1721729461977,-232.11,0.00013972,2]
[332988243,1721729461987,-331.74,0.00013972,2]
[332988244,1721729461996,-500.0,0.00013972,2]
[332988245,1721729462006,-311.32,0.00013972,2]
[332988246,1721729462016,-305.73,0.00013972,2]
[332988247,1721729462026,-212.15,0.00013972,2]
[332988248,1721729462035,-396.13,0.00013972,2]
[332988249,1721729462045,-255.27,0.00013972,2]
[332988250,1721729462054,-500.0,0.00013972,2]
[332988251,1721729462064,-500.0,0.00013972,2]
[332988252,1721729462076,-500.0,0.00013972,2]
[332988253,1721729462086,-500.0,0.00013972,2]
[332988254,1721729462095,-500.0,0.00013972,2]
[332988255,1721729462106,-352.03,0.00013972,2]
[332988256,1721729462118,-500.0,0.00013972,2]
[332988257,1721729462128,-500.0,0.00013972,2]
[332988258,1721729462138,-160.19,0.00013972,2]
[332988259,1721729462148,-549.7,0.00013972,2]
[332988260,1721729462159,-500.0,0.00013972,2]
[332988261,1721729462168,-237.92,0.00013972,2]
[332988262,1721729462178,-181.16071187,0.00013972,2]
[332988263,1721729462188,-500.0,0.00013972,2]
[332988264,1721729462198,-500.0,0.00013972,2]
[332988265,1721729462209,-500.0,0.00013972,2]
[332988266,1721729462219,-500.0,0.00013972,2]
[332988267,1721729462229,-500.0,0.00013972,2]
[332988268,1721729462239,-500.0,0.00013972,2]
[332988269,1721729462249,-190.46066924,0.00013972,2]
[332988270,1721729462259,-500.0,0.00013972,2]
[332988271,1721729462268,-500.0,0.00013972,2]
[332988272,1721729462278,-500.0,0.00013972,2]
[332988273,1721729462289,-500.0,0.00013972,2]
[332988274,1721729462297,-390.69941092,0.00013972,2]
[332988275,1721729462307,-520.24800628,0.00013972,2]
[332988276,1721729462317,-500.0,0.00013972,2]
[332988277,1721729462327,-444.50245364,0.00013972,2]
[332988278,1721729462337,-500.0,0.00013972,2]
[332988279,1721729462346,-613.76743264,0.00013972,2]
[332988280,1721729462358,-505.02052114,0.00013972,2]
[332988281,1721729462367,-505.34497148,0.00013972,2]
[332988282,1721729462376,-512.30370234,0.00013972,2]
[332988283,1721729462385,-516.39567376,0.00013972,2]
[332988284,1721729462395,-500.0,0.00013972,2]
[332988285,1721729462405,-500.0,0.00013972,2]
[332988286,1721729462415,-500.0,0.00013972,2]
[332988287,1721729462425,-500.0,0.00013972,2]
[332988288,1721729462434,-375.45,0.00013972,2]
[332988289,1721729462443,-477.47,0.00013972,2]
[332988290,1721729462454,-500.0,0.00013972,2]
[332988291,1721729462464,-500.0,0.00013972,2]
[332988292,1721729462475,-500.0,0.00013972,2]
[332988293,1721729462485,-504.86,0.00013972,2]
[332988294,1721729462495,-500.0,0.00013972,2]
[332988295,1721729462504,-504.96686369,0.00013972,2]
[332988296,1721729462514,-509.66471551,0.00013972,2]
[332988297,1721729462523,-500.0,0.00013972,2]
[332988298,1721729462534,-500.0,0.00013972,2]
[332988299,1721729462544,-350.61,0.00013972,2]
[332988300,1721729462554,-500.0,0.00013972,2]
[332988301,1721729462563,-500.0,0.00013972,2]
[332988302,1721729462574,-500.0,0.00013972,2]
[332988303,1721729462584,-510.85,0.00013972,2]
[332988304,1721729462595,-506.20777814,0.00013972,2]
[332988305,1721729462605,-500.0,0.00013972,2]
[332988306,1721729462615,-500.0,0.00013972,2]
[332988307,1721729462625,-500.0,0.00013972,2]
[332988308,1721729462636,-500.0,0.00013972,2]
[332988309,1721729462645,-500.0,0.00013972,2]
[332988310,1721729462657,-500.0,0.00013972,2]
[332988311,1721729462666,-520.64673539,0.00013972,2]
[332988312,1721729462676,-500.0,0.00013972,2]
[332988313,1721729462686,-500.0,0.00013972,2]
[332988314,1721729462696,-500.0,0.00013972,2]
[332988315,1721729462706,-500.0,0.00013972,2]
[332988316,1721729462716,-503.68402711,0.00013972,2]
[332988317,1721729462727,-500.0,0.00013972,2]
[332988318,1721729462737,-500.0,0.00013972,2]
[332988319,1721729462747,-500.0,0.00013972,2]
[332988320,1721729462757,-500.0,0.00013972,2]
[332988321,1721729462767,-340.79623054,0.00013972,2]
[332988322,1721729462777,-557.73610588,0.00013972,2]
[332988323,1721729462788,-505.48420296,0.00013972,2]
[332988324,1721729462798,-284.48400425,0.00013972,2]
[332988325,1721729462807,-500.0,0.00013972,2]
[332988326,1721729462817,-500.0,0.00013972,2]
[332988327,1721729462827,-422.42162559,0.00013972,2]
[332988328,1721729462836,-406.10347804,0.00013972,2]
[332988329,1721729462845,-541.86,0.00013972,2]
[332988330,1721729462856,-500.0,0.00013972,2]
[332988331,1721729462865,-515.63897043,0.00013972,2]
[332988332,1721729462875,-500.0,0.00013972,2]
[332988333,1721729462886,-500.0,0.00013972,2]
[332988334,1721729462896,-500.0,0.00013972,2]
[332988335,1721729462907,-500.0,0.00013972,2]
[332988336,1721729462917,-500.0,0.00013972,2]
[332988337,1721729462927,-500.0,0.00013972,2]
[332988338,1721729462938,-523.12803095,0.00013972,2]
[332988339,1721729462948,-510.93795534,0.00013972,2]
[332988340,1721729462959,-503.92453443,0.00013972,2]
[332988341,1721729462968,-500.0,0.00013972,2]
[332988342,1721729462978,-500.0,0.00013972,2]
[332988343,1721729462987,-500.0,0.00013972,2]
[332988344,1721729462997,-500.0,0.00013972,2]
[332988345,1721729463010,-555.37,0.00013972,2]
[332988346,1721729463020,-514.68123155,0.00013972,2]
[332988347,1721729463030,-500.0,0.00013972,2]
[332988348,1721729463040,-500.0,0.00013972,2]
[332988349,1721729463050,-172.49,0.00013972,2]
[332988350,1721729463059,-500.0,0.00013972,2]
[332988351,1721729463170,-500.0,0.00013972,2]
[332988352,1721729463179,-500.0,0.00013972,2]
[332988353,1721729463190,-152.7140758,0.00013972,2]
[332988354,1721729463199,-500.0,0.00013972,2]
[332988355,1721729463209,-500.0,0.00013972,2]
[332988356,1721729463218,-500.0,0.00013972,2]
[332988357,1721729463227,-500.0,0.00013972,2]
[332988358,1721729463237,-500.0,0.00013972,2]
[332988359,1721729463246,-295.1252547,0.00013972,2]
[332988360,1721729463256,-500.0,0.00013972,2]
[332988361,1721729463265,-500.0,0.00013972,2]
[332988362,1721729463275,-500.0,0.00013972,2]
[332988363,1721729463284,-500.0,0.00013972,2]
[332988364,1721729463294,-500.0,0.00013972,2]
[332988365,1721729463305,-198.5,0.00013972,2]
[332988366,1721729463316,-500.0,0.00013972,2]
[332988367,1721729463326,-504.85505854,0.00013972,2]
[332988368,1721729463336,-500.0,0.00013972,2]
[332988369,1721729463345,-500.0,0.00013972,2]
[332988370,1721729463355,-500.0,0.00013972,2]
[332988371,1721729463365,-500.0,0.00013972,2]
[332988372,1721729463374,-449.92,0.00013972,2]
[332988373,1721729463383,-500.0,0.00013972,2]
[332988374,1721729463394,-500.0,0.00013972,2]
[332988375,1721729463403,-317.05778061,0.00013972,2]
[332988376,1721729463412,-500.0,0.00013972,2]
[332988377,1721729463421,-500.0,0.00013972,2]
[332988378,1721729463430,-500.0,0.00013972,2]
[332988379,1721729463439,-503.17956329,0.00013972,2]
[332988380,1721729463449,-500.0,0.00013972,2]
[332988381,1721729463459,-500.0,0.00013972,2]
[332988382,1721729463468,-483.42768454,0.00013972,2]
[332988383,1721729463478,-506.30391252,0.00013972,2]
[332988384,1721729463487,-500.0,0.00013972,2]
[332988385,1721729463496,-500.0,0.00013972,2]
[332988386,1721729463506,-602.53,0.00013972,2]
[332988387,1721729463515,-500.0,0.00013972,2]
[332988388,1721729463525,-522.83513328,0.00013972,2]
[332988389,1721729463534,-500.0,0.00013972,2]
[332988390,1721729463543,-500.0,0.00013972,2]
[332988391,1721729463553,-500.0,0.00013972,2]
[332988392,1721729463562,-507.86488783,0.00013972,2]
[332988393,1721729463571,-555.64,0.00013972,2]
[332988394,1721729463582,-168.59528304,0.00013972,2]
[332988395,1721729463591,-504.67333145,0.00013972,2]
[332988396,1721729463599,-500.0,0.00013972,2]
[332988397,1721729463611,-624.98093752,0.00013972,2]
[332988398,1721729463620,-246.48,0.00013972,2]
[332988399,1721729463630,-502.35525538,0.00013972,2]
[332988400,1721729463639,-436.35753818,0.00013972,2]
[332988401,1721729463651,-559.69,0.00013972,2]
[332988402,1721729463661,-506.13753614,0.00013972,2]
[332988403,1721729463671,-500.0,0.00013972,2]
[332988404,1721729463680,-504.41198187,0.00013972,2]
[332988405,1721729463690,-500.0,0.00013972,2]
[332988406,1721729463699,-500.0,0.00013972,2]
[332988407,1721729463708,-500.0,0.00013972,2]
[332988408,1721729463719,-500.0,0.00013972,2]
[332988409,1721729463728,-500.0,0.00013972,2]
[332988410,1721729463738,-613.01264281,0.00013972,2]
[332988411,1721729463748,-500.0,0.00013972,2]
[332988412,1721729463758,-500.0,0.00013972,2]
[332988413,1721729463767,-500.0,0.00013972,2]
[332988414,1721729463777,-500.0,0.00013972,2]
[332988415,1721729463787,-500.0,0.00013972,2]
[332988416,1721729463797,-500.0,0.00013972,2]
[332988417,1721729463807,-605.58138477,0.00013972,2]
[332988418,1721729463817,-500.0,0.00013972,2]
[332988419,1721729463827,-504.63061822,0.00013972,2]
[332988420,1721729463838,-500.0,0.00013972,2]
[332988421,1721729463848,-500.0,0.00013972,2]
[332988422,1721729463858,-500.0,0.00013972,2]
[332988423,1721729463868,-504.54226325,0.00013972,2]
[332988424,1721729463888,-500.0,0.00013972,2]
[332988425,1721729463900,-500.0,0.00013972,2]
[332988426,1721729463910,-501.71503205,0.00013972,2]
[332988427,1721729463921,-500.0,0.00013972,2]
[332988428,1721729463931,-500.0,0.00013972,2]
[332988429,1721729463941,-500.0,0.00013972,2]
[332988430,1721729463952,-505.34550588,0.00013972,2]
[332988431,1721729463962,-500.0,0.00013972,2]
[332988432,1721729463973,-500.0,0.00013972,2]
[332988433,1721729463983,-505.16742764,0.00013972,2]
[332988434,1721729463994,-501.87035662,0.00013972,2]
[332988435,1721729464004,-500.0,0.00013972,2]
[332988436,1721729464015,-500.0,0.00013972,2]
[332988437,1721729464025,-500.0,0.00013972,2]
[332988438,1721729464035,-500.0,0.00013972,2]
[332988439,1721729464045,-500.0,0.00013972,2]
[332988440,1721729464055,-500.0,0.00013972,2]
[332988441,1721729464065,-500.0,0.00013972,2]
[332988442,1721729464078,-500.0,0.00013972,2]
[332988443,1721729464089,-500.0,0.00013972,2]
[332988444,1721729464099,-500.0,0.00013972,2]
[332988445,1721729464111,-500.0,0.00013972,2]
[332988446,1721729464122,-500.0,0.00013972,2]
[332988447,1721729464133,-507.92221688,0.00013972,2]
[332988448,1721729464145,-218.47153059,0.00013972,2]
[332988449,1721729464156,-500.0,0.00013972,2]
[332988450,1721729464166,-500.0,0.00013972,2]
[332988451,1721729464178,-255.94,0.00013972,2]
[332988452,1721729464188,-510.91,0.00013972,2]
[332988453,1721729464199,-500.0,0.00013972,2]
[332988454,1721729464209,-500.0,0.00013972,2]
[332988455,1721729464219,-505.21238644,0.00013972,2]
[332988456,1721729464229,-500.0,0.00013972,2]
[332988457,1721729464240,-503.36633025,0.00013972,2]
[332988458,1721729464250,-518.5,0.00013972,2]
[332988459,1721729464260,-506.26075919,0.00013972,2]
[332988460,1721729464270,-500.0,0.00013972,2]
[332988461,1721729464281,-502.52639465,0.00013972,2]
[332988462,1721729464291,-500.0,0.00013972,2]
[332988463,1721729464301,-500.0,0.00013972,2]
[332988464,1721729464310,-506.95801167,0.00013972,2]
[332988465,1721729464321,-500.0,0.00013972,2]
[332988466,1721729464331,-500.0,0.00013972,2]
[332988467,1721729464341,-504.84,0.00013972,2]
[332988468,1721729464350,-500.0,0.00013972,2]
[332988469,1721729464362,-242.69,0.00013972,2]
[332988470,1721729464372,-500.0,0.00013972,2]
[332988471,1721729464381,-500.0,0.00013972,2]
[332988472,1721729464392,-500.0,0.00013972,2]
[332988473,1721729464402,-500.0,0.00013972,2]
[332988474,1721729464412,-563.50396674,0.00013972,2]
[332988475,1721729464421,-500.0,0.00013972,2]
[332988476,1721729464431,-502.35646363,0.00013972,2]
[332988477,1721729464440,-500.0,0.00013972,2]
[332988478,1721729464450,-500.0,0.00013972,2]
[332988479,1721729464461,-500.0,0.00013972,2]
[332988480,1721729464471,-500.0,0.00013972,2]
[332988481,1721729464481,-537.2734847,0.00013972,2]
[332988482,1721729464491,-500.0,0.00013972,2]
[332988483,1721729464501,-500.0,0.00013972,2]
[332988484,1721729464510,-502.82560448,0.00013972,2]
[332988485,1721729464520,-505.01087498,0.00013972,2]
[332988486,1721729464530,-503.74685169,0.00013972,2]
[332988487,1721729464541,-504.14794078,0.00013972,2]
[332988488,1721729464552,-500.0,0.00013972,2]
[332988489,1721729464562,-500.0,0.00013972,2]
[332988490,1721729464572,-330.65,0.00013972,2]
[332988491,1721729464581,-504.79982056,0.00013972,2]
[332988492,1721729464591,-504.25201991,0.00013972,2]
[332988493,1721729464601,-500.0,0.00013972,2]
[332988494,1721729464615,-504.19773066,0.00013972,2]
[332988495,1721729464624,-500.0,0.00013972,2]
[332988496,1721729464635,-500.0,0.00013972,2]
[332988497,1721729464644,-502.3918591,0.00013972,2]
[332988498,1721729464654,-504.24303486,0.00013972,2]
[332988499,1721729464664,-500.0,0.00013972,2]
[332988500,1721729464673,-500.0,0.00013972,2]
[332988501,1721729464683,-500.0,0.00013972,2]
[332988502,1721729464693,-500.0,0.00013972,2]
[332988503,1721729464702,-506.54709683,0.00013972,2]
[332988504,1721729464716,-505.84175279,0.00013972,2]
[332988505,1721729464728,-254.86600932,0.00013972,2]
[332988506,1721729464737,-500.0,0.00013972,2]
[332988507,1721729464747,-500.0,0.00013972,2]
[332988508,1721729464757,-501.61718614,0.00013972,2]
[332988509,1721729464768,-505.10557272,0.00013972,2]
[332988510,1721729464778,-500.0,0.00013972,2]
[332988511,1721729464788,-500.0,0.00013972,2]
[332988512,1721729464798,-470.64675303,0.00013972,2]
[332988513,1721729464808,-500.0,0.00013972,2]
[332988514,1721729464818,-500.0,0.00013972,2]
[332988515,1721729464828,-171.92540855,0.00013972,2]
[332988516,1721729464838,-500.0,0.00013972,2]
[332988517,1721729464848,-586.48046949,0.00013972,2]
[332988518,1721729464860,-505.06768566,0.00013972,2]
[332988519,1721729465036,-500.0,0.00013972,2]
[332988520,1721729465046,-506.1346671,0.00013972,2]
[332988521,1721729465057,-500.0,0.00013972,2]
[332988522,1721729465067,-500.0,0.00013972,2]
[332988523,1721729465080,-528.69345037,0.00013972,2]
[332988524,1721729465090,-500.0,0.00013972,2]
[332988525,1721729465100,-609.76573278,0.00013972,2]
[332988526,1721729465112,-504.54753194,0.00013972,2]
[332988527,1721729465122,-504.5151077,0.00013972,2]
[332988528,1721729465131,-500.0,0.00013972,2]
[332988529,1721729465141,-500.0,0.00013972,2]
[332988530,1721729465150,-500.0,0.00013972,2]
[332988531,1721729465159,-505.77597996,0.00013972,2]
[332988532,1721729465169,-500.0,0.00013972,2]
[332988533,1721729465179,-500.0,0.00013972,2]
[332988534,1721729465189,-500.0,0.00013972,2]
[332988535,1721729465198,-2083.33,0.00013972,2]
[332988536,1721729465209,-500.0,0.00013972,2]
[332988537,1721729465218,-500.0,0.00013972,2]
[332988538,1721729465228,-1930.55,0.00013972,2]
[332988539,1721729465238,-360.55115954,0.00013972,2]
[332988540,1721729465247,-465.76563236,0.00013972,2]
[332988541,1721729465256,-500.0,0.00013972,2]
[332988542,1721729465266,-484.07,0.00013972,2]
[332988543,1721729465276,-500.0,0.00013972,2]
[332988544,1721729465286,-500.0,0.00013972,2]
[332988545,1721729465295,-500.0,0.00013972,2]
[332988546,1721729465305,-492.04,0.00013972,2]
[332988547,1721729465315,-500.0,0.00013972,2]
[332988548,1721729465324,-500.0,0.00013972,2]
[332988549,1721729465333,-500.0,0.00013972,2]
[332988550,1721729465343,-169.39,0.00013972,2]
[332988551,1721729465353,-500.0,0.00013972,2]
[332988552,1721729465365,-500.0,0.00013972,2]
[332988553,1721729465374,-500.0,0.00013972,2]
[332988554,1721729465384,-500.0,0.00013972,2]
[332988555,1721729465394,-500.0,0.00013972,2]
[332988556,1721729465406,-415.65,0.00013972,2]
[332988557,1721729465416,-500.0,0.00013972,2]
[332988558,1721729465426,-500.0,0.00013972,2]
[332988559,1721729465435,-2133.32,0.00013972,2]
[332988560,1721729465445,-556.28,0.00013972,2]
[332988561,1721729465454,-294.72,0.00013972,2]
[332988562,1721729465463,-457.75,0.00013972,2]
[332988563,1721729465473,-500.0,0.00013972,2]
[332988564,1721729465482,-500.0,0.00013972,2]
[332988565,1721729465491,-500.0,0.00013972,2]
[332988566,1721729465502,-500.0,0.00013972,2]
[332988567,1721729465511,-500.0,0.00013972,2]
[332988568,1721729465521,-500.0,0.00013972,2]
[332988569,1721729465532,-215.37,0.00013972,2]
[332988570,1721729465543,-500.0,0.00013972,2]
[332988571,1721729465556,-500.0,0.00013972,2]
[332988572,1721729465565,-500.0,0.00013972,2]
[332988573,1721729465574,-500.0,0.00013972,2]
[332988574,1721729465583,-500.0,0.00013972,2]
[332988575,1721729465593,-493.84,0.00013972,2]
[332988576,1721729465602,-476.63,0.00013972,2]
[332988577,1721729465613,-500.0,0.00013972,2]
[332988578,1721729465622,-500.0,0.00013972,2]
[332988579,1721729465631,-500.0,0.00013972,2]
[332988580,1721729465640,-485.85,0.00013972,2]
[332988581,1721729465650,-326.3,0.00013972,2]
[332988582,1721729465659,-549.63175542,0.00013972,2]
[332988583,1721729465669,-258.09,0.00013972,2]
[332988584,1721729465679,-500.0,0.00013972,2]
[332988585,1721729465690,-258.02,0.00013972,2]
[332988586,1721729465700,-386.67,0.00013972,2]
[332988587,1721729465710,-561.09,0.00013972,2]
[332988588,1721729465722,-500.0,0.00013972,2]